bitfinex/quotes_ETHUSD_20250406
["timestamp","ask_amount","ask_price","bid_price","bid_amount"]
[1743936005734,11.69304,1787.9,1787.5,5.211]
[1743936005936,11.69304,1787.9,1787.8,0.18189354]
[1743936006467,11.69304,1787.9,1787.5,5.211]
[1743936006768,3.91544,1787.8,1787.5,5.211]
[1743936006955,3.91544,1787.8,1787.4,13.80654]
[1743936007156,0.8202,1787.7,1787.4,13.04344]
[1743936008335,0.8202,1787.7,1787.5,0.18332737]
[1743936009672,0.8202,1787.7,1787.5,4.09938737]
[1743936009882,0.8202,1787.7,1787.5,4.15532355]
[1743936010036,0.8202,1787.7,1787.5,4.09938737]
[1743936013994,0.8202,1787.7,1787.5,8.01532737]
[1743936014290,7.75168,1787.9,1787.6,0.80153274]
[1743936014647,7.75168,1787.9,1787.7,0.18237143]
[1743936021812,4.75168,1787.9,1787.7,0.18237143]
[1743936022575,8.66704,1787.9,1787.7,0.18237143]
[1743936022769,4.75168,1787.9,1787.5,4.74807612]
[1743936022968,4.75168,1787.9,1787.6,0.65765699]
[1743936026214,8.66705,1787.9,1787.6,0.65765699]
[1743936027911,3.91544,1787.8,1787.6,0.65765699]
[1743936029880,3.91544,1787.8,1787.6,0.18284938]
[1743936030500,4.75168,1787.9,1787.6,0.18284938]
[1743936030501,3.96528,1787.9,1787.6,0.18284938]
[1743936031306,0.05,1787.9,1787.8,0.7615]
[1743936031479,0.05,1787.9,1787.8,4.67692]
[1743936031675,0.05,1787.9,1787.8,5.61888245]
[1743936032289,0.05,1787.9,1787.8,5.67480764]
[1743936032490,0.05,1787.9,1787.8,5.61888245]
[1743936032694,0.05,1787.9,1787.8,10.82988245]
[1743936032893,0.05,1787.9,1787.8,10.88580764]
[1743936040642,0.05,1787.9,1787.8,10.82988245]
[1743936043039,0.05,1787.9,1787.8,10.88580762]
[1743936043639,0.05,1787.9,1787.8,10.82988245]
[1743936043992,0.05,1787.9,1787.8,10.88580762]
[1743936046937,0.05,1787.9,1787.8,10.82988245]
[1743936048665,0.05,1787.9,1787.8,10.06838245]
[1743936051734,0.05,1787.9,1787.8,6.15296245]
[1743936052322,0.05,1787.9,1787.8,0.94196245]
[1743936054568,0.05,1787.9,1787.8,0.46867684]
[1743936062943,4.7347,1787.9,1787.8,0.46867684]
[1743936063359,4.7347,1787.9,1787.5,9.12593]
[1743936063559,4.7347,1787.9,1787.8,0.46766372]
[1743936063758,4.7347,1787.9,1787.5,9.18186568]
[1743936063982,4.7347,1787.9,1787.8,0.46766372]
[1743936064487,4.7347,1787.9,1787.5,9.18186568]
[1743936064660,4.7347,1787.9,1787.8,0.46766372]
[1743936065075,4.7347,1787.9,1787.6,3.91585]
[1743936065244,4.7347,1787.9,1787.7,0.4681576]
[1743936065659,4.7347,1787.9,1787.5,13.09784566]
[1743936065942,4.7347,1787.9,1787.6,0.46865153]
[1743936066447,4.7347,1787.9,1787.6,4.38448153]
[1743936067391,3.9652,1787.9,1787.6,4.38448153]
[1743936068966,0.05,1787.9,1787.7,3.91562]
[1743936069356,0.05,1787.9,1787.8,0.46766372]
[1743936072197,0.05,1787.9,1787.8,4.38308372]
[1743936072411,0.05,1787.9,1787.8,4.43901299]
[1743936072697,0.05,1787.9,1787.8,5.27121299]
[1743936078942,0.05,1787.9,1787.8,5.21528372]
[1743936079537,0.05,1787.9,1787.8,5.27120011]
[1743936081710,0.05,1787.9,1787.8,5.21528372]
[1743936081915,0.05,1787.9,1787.8,11.37528372]
[1743936090547,0.05,1787.9,1787.8,14.92528372]
[1743936092858,0.7781,1788.6,1788.5,3.91389]
[1743936093183,1.3281,1788.8,1788.6,3.91359]
[1743936093337,1.3281,1788.8,1788.7,3.91345]
[1743936093535,1.3281,1788.8,1788.7,4.38066999]
[1743936095272,0.55,1788.8,1788.7,4.38066999]
[1743936095477,1.3596,1788.8,1788.7,4.38066999]
[1743936095772,1.3596,1788.8,1788.7,0.46721999]
[1743936103082,5.860108,1788.8,1788.7,0.46721999]
[1743936103288,5.860108,1788.8,1788.3,9.12127]
[1743936103289,3.91351,1788.7,1788.3,9.12127]
[1743936103491,0.8096,1788.6,1788.4,0.46852742]
[1743936104292,0.8096,1788.5,1788.2,9.12144]
[1743936104498,0.8096,1788.5,1788.3,4.38333123]
[1743936106066,0.8096,1788.5,1788.4,0.6]
[1743936106364,0.8096,1788.5,1788.4,1.06852742]
[1743936106763,4.72349,1788.5,1788.4,1.06852742]
[1743936110611,0.8096,1788.5,1788.4,1.06852742]
[1743936112467,4.72349,1788.5,1788.4,1.06852742]
[1743936116573,5.887214,1788.5,1788.4,1.06852742]
[1743936117576,8.887214,1788.5,1788.4,1.06852742]
[1743936117740,9.437214,1788.5,1788.4,1.06852742]
[1743936117935,9.437214,1788.5,1788.4,0.6]
[1743936118340,9.437214,1788.5,1788.4,1.02972407]
[1743936121862,9.437214,1788.5,1788.4,0.6]
[1743936122387,3.9148,1788.1,1787.7,13.86721914]
[1743936122705,3.9148,1788.1,1787.8,0.43268773]
[1743936125393,7.82973,1788.1,1787.8,0.43268773]
[1743936125568,4.70009,1788.0,1787.8,0.43268773]
[1743936126280,0.7851,1788.0,1787.8,0.43268773]
[1743936127497,0.7851,1788.0,1787.9,0.6]
[1743936127700,0.7851,1788.0,1787.9,1.03219365]
[1743936128462,4.70008,1788.0,1787.9,1.03219365]
[1743936129295,0.7851,1788.0,1787.9,1.03219365]
[1743936132063,4.70008,1788.0,1787.9,1.03219365]
[1743936132268,5.561575,1788.0,1787.9,1.03219365]
[1743936132481,4.70008,1788.0,1787.9,1.03219365]
[1743936133714,7.70008,1788.0,1787.9,1.03219365]
[1743936166786,6.91498,1788.0,1787.9,1.03219365]
[1743936168250,3.91456,1788.2,1788.0,0.7655]
[1743936168443,3.91476,1788.1,1788.0,0.7655]
[1743936169282,3.91456,1788.2,1788.0,0.7655]
[1743936170554,7.82927,1788.2,1788.1,0.6]
[1743936170756,9.162197,1788.2,1788.1,0.6]
[1743936171001,12.992997,1788.2,1788.1,0.6]
[1743936171301,3.91532,1787.9,1787.6,0.7655]
[1743936173306,3.91532,1787.9,1787.7,0.43520918]
[1743936176121,3.91532,1787.9,1787.8,0.7612]
[1743936176432,3.91532,1787.9,1787.8,1.19591493]
[1743936179929,3.91532,1787.9,1787.8,0.43471493]
[1743936180096,6.91532,1787.9,1787.8,0.43471493]
[1743936180300,7.83111,1787.8,1787.6,0.7612]
[1743936180607,3.91564,1787.7,1787.6,0.7612]
[1743936181402,3.91588,1787.6,1787.4,0.7612]
[1743936181605,3.91608,1787.5,1787.2,5.208]
[1743936181840,3.91608,1787.5,1787.2,5.9692]
[1743936181998,3.91608,1787.5,1787.2,0.7612]
[1743936182621,3.91588,1787.6,1787.2,4.73388564]
[1743936182817,3.91588,1787.6,1787.3,3.91651]
[1743936183033,3.91588,1787.6,1787.3,4.67771]
[1743936183219,3.91564,1787.7,1787.4,0.467771]
[1743936183433,7.83137,1787.7,1787.4,0.467771]
[1743936185437,3.91588,1787.6,1787.4,0.467771]
[1743936185935,3.91588,1787.6,1787.3,0.7612]
[1743936188240,3.91588,1787.6,1787.4,0.43669226]
[1743936188424,3.91588,1787.6,1787.3,0.7612]
[1743936188738,3.91588,1787.6,1787.5,0.43619784]
[1743936188922,3.91588,1787.6,1787.4,0.43669226]
[1743936189122,3.91588,1787.6,1787.5,0.43619784]
[1743936189516,3.91588,1787.6,1787.3,0.7612]
[1743936189717,3.91588,1787.6,1787.5,0.43619784]
[1743936189919,3.91588,1787.6,1787.4,0.43669226]
[1743936190122,3.91588,1787.6,1787.5,0.43619784]
[1743936190507,3.91588,1787.6,1787.3,0.7612]
[1743936190811,3.91588,1787.6,1787.4,0.43669226]
[1743936191210,3.91588,1787.6,1787.3,0.7612]
[1743936191417,3.91588,1787.6,1787.5,0.43619784]
[1743936191742,3.91588,1787.6,1787.3,0.7612]
[1743936192042,3.91588,1787.6,1787.4,0.43669226]
[1743936192242,3.91588,1787.6,1787.3,0.7612]
[1743936192446,3.91588,1787.6,1787.5,0.43619784]
[1743936192646,3.91631,1787.4,1787.1,0.7878]
[1743936193239,3.91615,1787.5,1787.1,4.76070079]
[1743936193605,3.91615,1787.5,1787.1,4.70461]
[1743936194206,7.83243,1787.5,1787.1,4.70461]
[1743936197328,7.83243,1787.5,1787.2,0.6]
[1743936198550,3.91615,1787.5,1787.2,0.6]
[1743936199968,7.83241,1787.5,1787.2,0.6]
[1743936201371,3.91615,1787.5,1787.2,0.6]
[1743936203182,6.91588,1787.6,1787.3,0.8299]
[1743936203361,6.91588,1787.6,1787.3,1.26708673]
[1743936204330,10.8319,1787.6,1787.3,1.26708673]
[1743936206573,10.8319,1787.6,1787.3,1.8454684]
[1743936206759,6.91588,1787.6,1787.3,1.8454684]
[1743936209088,10.83189,1787.6,1787.3,1.8454684]
[1743936209749,3.91609,1787.5,1787.3,1.8454684]
[1743936210535,3.91609,1787.5,1787.3,1.26708673]
[1743936223292,6.91588,1787.6,1787.3,1.26708673]
[1743936223788,3.91616,1787.5,1787.3,0.43718673]
[1743936225098,6.91593,1787.6,1787.3,0.43718673]
[1743936225297,6.91593,1787.6,1787.3,1.25018673]
[1743936226782,3.91609,1787.5,1787.3,1.25018673]
[1743936227701,6.91593,1787.6,1787.3,1.25018673]
[1743936229708,3.91593,1787.6,1787.3,1.25018673]
[1743936229904,3.91593,1787.6,1787.3,5.7433744]
[1743936230496,3.91568,1787.7,1787.3,5.7432944]
[1743936230712,3.91568,1787.7,1787.4,0.8134]
[1743936230880,3.91568,1787.7,1787.4,1.21340051]
[1743936231223,3.91568,1787.7,1787.4,1.78405133]
[1743936233110,3.91564,1787.8,1787.4,5.70021133]
[1743936233612,7.83122,1787.8,1787.4,5.70021133]
[1743936233811,7.83122,1787.8,1787.4,5.12956051]
[1743936234325,3.916,1787.6,1787.4,0.40000051]
[1743936234519,0.7507,1787.7,1787.2,1.3583]
[1743936234686,0.7507,1787.7,1787.2,6.5653]
[1743936234687,3.91642,1787.4,1787.2,6.5653]
[1743936234879,3.91652,1787.3,1787.2,5.807]
[1743936235080,3.91652,1787.3,1787.2,0.6]
[1743936235398,4.699814,1787.3,1787.2,0.6]
[1743936239347,3.91652,1787.3,1787.2,0.6]
[1743936241138,3.91642,1787.4,1787.2,0.6]
[1743936241704,7.8329,1787.4,1787.2,0.6]
[1743936245024,3.91652,1787.3,1787.2,0.6]
[1743936248348,3.91652,1787.3,1787.2,0.99832093]
[1743936249640,3.91642,1787.4,1787.2,0.99832093]
[1743936249818,4.77474,1787.4,1787.2,0.99832093]
[1743936250018,8.69119,1787.4,1787.2,0.99832093]
[1743936250629,3.91652,1787.3,1787.2,0.99832093]
[1743936254819,4.70822,1787.3,1787.2,0.99832093]
[1743936255044,8.25822,1787.3,1787.2,0.99832093]
[1743936255245,9.561516,1787.3,1787.2,0.99832093]
[1743936255562,9.561516,1787.3,1787.2,0.39832093]
[1743936255744,3.91702,1787.1,1786.8,0.7884]
[1743936256228,3.91702,1787.1,1786.6,4.70637]
[1743936256229,0.7917,1787.1,1786.6,4.70637]
[1743936256433,3.91741,1786.9,1786.6,5.9954]
[1743936256656,7.83498,1786.9,1786.6,0.7884]
[1743936256853,8.62668,1786.9,1786.5,0.7884]
[1743936257358,3.91762,1786.8,1786.5,0.7884]
[1743936258063,4.70911,1786.9,1786.5,4.70666]
[1743936258465,4.70911,1786.9,1786.1,7.3929346]
[1743936258466,3.91816,1786.6,1786.3,0.7884]
[1743936258765,3.91837,1786.5,1786.3,0.7884]
[1743936259064,3.91816,1786.6,1786.3,0.7884]
[1743936259882,7.83638,1786.6,1786.3,0.7884]
[1743936260030,3.91816,1786.6,1786.3,0.7884]
[1743936263036,3.0,1786.7,1786.4,0.37170401]
[1743936263375,3.0,1786.7,1786.5,0.7884]
[1743936263671,3.0,1786.7,1786.6,0.3705004]
[1743936264076,3.91758,1786.9,1786.6,0.3705004]
[1743936265578,7.83519,1786.9,1786.6,0.3705004]
[1743936265788,3.91758,1786.9,1786.6,0.3705004]
[1743936267593,7.83514,1786.9,1786.6,0.3705004]
[1743936269367,3.91761,1786.8,1786.6,0.3705004]
[1743936271190,7.83512,1786.9,1786.6,0.3705004]
[1743936271889,3.91756,1786.9,1786.6,0.3705004]
[1743936272290,6.91718,1787.0,1786.6,0.3705004]
[1743936272590,6.91718,1787.0,1786.7,0.7672]
[1743936273098,6.91718,1787.0,1786.8,0.36908343]
[1743936275281,10.83452,1787.0,1786.8,0.36908343]
[1743936276111,6.91739,1786.9,1786.8,0.36908343]
[1743936278122,3.0,1786.9,1786.8,0.36908343]
[1743936280122,6.91739,1786.9,1786.8,0.36908343]
[1743936280307,8.000842,1786.9,1786.8,0.36908343]
[1743936280512,8.804042,1786.9,1786.4,9.89356]
[1743936280810,8.804042,1786.9,1786.8,0.37025841]
[1743936281004,12.721622,1786.9,1786.4,9.94953224]
[1743936281210,3.91762,1786.8,1786.4,9.94953224]
[1743936281600,3.91762,1786.8,1786.4,9.89356]
[1743936284532,7.83368,1787.2,1786.8,3.91761]
[1743936284818,7.83368,1787.2,1786.7,4.68489]
[1743936284819,3.0,1787.1,1786.7,8.60259]
[1743936285125,3.691675,1787.1,1786.7,8.60259]
[1743936285623,3.691675,1787.1,1786.7,8.60263]
[1743936285823,3.691675,1787.1,1786.8,0.6]
[1743936288916,3.691675,1787.1,1786.8,4.5176]
[1743936293135,3.691675,1787.1,1786.9,0.36944354]
[1743936294610,3.691675,1787.1,1786.9,1.19384354]
[1743936294809,3.0,1787.1,1786.9,1.19384354]
[1743936297911,6.91698,1787.1,1786.9,1.19384354]
[1743936298235,6.91698,1787.1,1786.9,0.36944354]
[1743936299032,3.91636,1787.4,1787.0,0.8244]
[1743936299237,4.779196,1787.4,1787.0,4.74149]
[1743936299397,4.779196,1787.4,1787.1,0.36845413]
[1743936299900,8.695646,1787.4,1787.1,0.36845413]
[1743936300333,3.91653,1787.3,1787.1,0.36845413]
[1743936302232,4.779196,1787.4,1787.1,0.36845413]
[1743936304926,8.695656,1787.4,1787.1,0.36845413]
[1743936305250,7.71264,1787.2,1787.1,0.36845413]
[1743936305640,7.71264,1787.2,1786.7,9.9491]
[1743936305818,7.71264,1787.2,1787.1,0.36845413]
[1743936306020,3.917,1787.1,1786.7,9.9491]
[1743936306639,3.91718,1787.0,1786.7,6.0314]
[1743936307036,0.8,1786.9,1786.5,4.72196]
[1743936307244,3.91761,1786.8,1786.6,5.207]
[1743936307748,4.46687,1787.2,1786.7,4.72139]
[1743936307935,5.26687,1787.2,1786.7,4.72139]
[1743936308251,5.26687,1787.2,1786.8,4.25695149]
[1743936308547,4.7860856,1787.3,1786.9,3.9173]
[1743936308755,3.91652,1787.3,1786.9,5.05995674]
[1743936309349,7.83322,1787.3,1786.9,5.05995674]
[1743936309516,3.91652,1787.3,1786.9,5.05995674]
[1743936309718,0.391652,1787.2,1786.9,1.14265674]
[1743936309941,4.308392,1787.2,1786.9,1.14265674]
[1743936311160,0.391652,1787.2,1786.9,1.14265674]
[1743936311367,3.91652,1787.3,1787.0,0.6]
[1743936311548,3.91652,1787.3,1787.0,0.93846204]
[1743936311852,7.71631,1787.4,1787.0,4.85555204]
[1743936312862,7.71631,1787.4,1787.0,0.93846204]
[1743936313153,3.91664,1787.3,1787.0,0.93846204]
[1743936314267,5.079934,1787.3,1787.0,0.93846204]
[1743936316565,8.996624,1787.3,1787.0,0.93846204]
[1743936316880,5.079934,1787.3,1787.0,0.93846204]
[1743936317160,0.7516,1787.6,1787.2,3.91656]
[1743936317361,4.66703,1787.8,1787.4,3.91622]
[1743936317570,3.0,1787.7,1787.4,3.91622]
[1743936317719,3.0,1787.7,1787.5,0.33598938]
[1743936317926,3.766703,1787.7,1787.5,0.33598938]
[1743936318636,7.682443,1787.7,1787.5,0.33598938]
[1743936318968,7.682443,1787.7,1787.3,4.6917]
[1743936318969,7.682443,1787.7,1787.6,0.33549501]
[1743936319371,0.766703,1787.7,1787.4,3.91629]
[1743936319531,7.66711,1787.8,1787.6,0.33549501]
[1743936319870,7.66711,1787.8,1787.4,3.91629]
[1743936320033,7.66711,1787.8,1787.7,0.3350007]
[1743936320234,7.66711,1787.8,1787.4,3.91629]
[1743936320770,7.66711,1787.8,1787.5,0.33598938]
[1743936320970,4.682351,1787.7,1787.3,4.6916]
[1743936321175,4.682351,1787.7,1787.6,0.33549501]
[1743936321376,4.682351,1787.7,1787.3,4.6916]
[1743936321682,4.682351,1787.7,1787.6,0.33549501]
[1743936321832,4.682351,1787.7,1787.3,4.6916]
[1743936322386,4.682351,1787.7,1787.4,0.3364838]
[1743936322676,4.682351,1787.7,1787.3,4.6916]
[1743936322867,4.682351,1787.7,1787.5,0.33598938]
[1743936323075,0.4682351,1787.6,1787.4,0.3364838]
[1743936323269,4.3842051,1787.6,1787.3,0.7752]
[1743936323473,12.0518651,1787.6,1787.5,0.33598938]
[1743936323679,6.91608,1787.5,1787.4,0.3364838]
[1743936323833,12.03751851,1787.5,1787.1,0.7752]
[1743936324035,3.9163,1787.4,1787.1,0.7752]
[1743936324232,3.91653,1787.3,1787.0,5.206]
[1743936326045,3.91653,1787.3,1786.9,4.69254]
[1743936326474,3.91603,1787.6,1787.1,0.7966]
[1743936326782,3.91609,1787.5,1787.1,4.71342]
[1743936327391,7.83233,1787.5,1787.1,4.71342]
[1743936328745,3.91609,1787.5,1787.1,4.71342]
[1743936328947,6.91588,1787.6,1787.1,4.71341]
[1743936329247,6.91588,1787.6,1787.2,3.91672]
[1743936331255,6.91588,1787.6,1787.3,0.6]
[1743936332268,10.8319,1787.6,1787.3,0.6]
[1743936332457,3.91613,1787.5,1787.3,0.6]
[1743936335289,6.91592,1787.6,1787.3,0.6]
[1743936337082,10.83194,1787.6,1787.3,0.6]
[1743936337746,6.91592,1787.6,1787.4,0.8237]
[1743936337984,3.91499,1788.0,1787.6,3.91577]
[1743936338282,3.91499,1788.0,1787.7,1.215277]
[1743936338448,3.91499,1788.0,1787.7,1.29790306]
[1743936339005,3.91521,1787.9,1787.7,1.29790306]
[1743936339284,3.91521,1787.9,1787.7,0.47420306]
[1743936339464,7.83057,1787.9,1787.7,0.47420306]
[1743936339662,3.91521,1787.9,1787.6,0.8237]
[1743936339985,3.91521,1787.9,1787.7,0.47420306]
[1743936340282,8.613591,1787.9,1787.7,0.47420306]
[1743936340785,4.698231,1787.9,1787.7,0.47420306]
[1743936344089,8.613591,1787.9,1787.7,0.47420306]
[1743936345473,3.91542,1787.8,1787.7,0.47420306]
[1743936346975,3.91542,1787.8,1787.5,0.7749]
[1743936347177,3.91542,1787.8,1787.7,0.47420306]
[1743936347477,3.91542,1787.8,1787.5,0.7749]
[1743936347670,3.91542,1787.8,1787.7,0.47420306]
[1743936347874,3.91542,1787.8,1787.6,0.47470516]
[1743936348075,3.91542,1787.8,1787.7,0.47420306]
[1743936348465,3.91542,1787.8,1787.5,0.7749]
[1743936348669,8.60351,1787.8,1787.7,0.47420306]
[1743936348857,8.60351,1787.8,1787.6,0.47470516]
[1743936348858,3.91564,1787.7,1787.6,0.47470516]
[1743936349058,3.9159,1787.6,1787.4,5.204]
[1743936349662,7.83192,1787.6,1787.3,5.9789]
[1743936352700,3.9161,1787.5,1787.3,0.7749]
[1743936352903,3.9161,1787.5,1787.2,5.204]
[1743936353199,3.9161,1787.5,1787.3,0.47621179]
[1743936355301,7.83234,1787.5,1787.3,0.47621179]
[1743936355508,3.9163,1787.4,1787.3,0.47621179]
[1743936355842,3.91675,1787.2,1786.9,9.88108]
[1743936356539,3.91675,1787.2,1787.0,0.6]
[1743936356836,3.91654,1787.3,1787.0,0.6]
[1743936358631,7.83323,1787.3,1787.0,0.6]
[1743936358840,3.91654,1787.3,1787.0,0.6]
[1743936359410,3.91654,1787.3,1787.0,1.13330347]
[1743936360937,3.91654,1787.3,1787.0,5.05047347]
[1743936361632,3.91654,1787.3,1787.0,0.6]
[1743936361930,3.91683,1787.2,1787.0,0.6]
[1743936362292,7.83375,1787.2,1787.0,0.6]
[1743936362699,3.91696,1787.1,1787.0,0.6]
[1743936365609,6.91696,1787.1,1787.0,0.6]
[1743936365821,8.083179,1787.1,1787.0,0.6]
[1743936368148,8.083179,1787.1,1787.0,0.99934305]
[1743936372842,8.905579,1787.1,1787.0,0.99934305]
[1743936373045,9.455579,1787.1,1787.0,0.39934305]
[1743936373216,3.91791,1786.7,1786.4,0.7727]
[1743936373416,3.91817,1786.6,1786.5,0.39903453]
[1743936373621,3.91817,1786.6,1786.2,9.89762]
[1743936373825,3.91817,1786.6,1786.3,0.40004001]
[1743936374833,4.7408,1786.5,1786.3,0.40004001]
[1743936375149,4.7408,1786.5,1786.1,3.96914]
[1743936375547,8.65925,1786.5,1786.2,0.40461532]
[1743936377343,3.9185,1786.4,1786.2,0.40461532]
[1743936378041,4.7408,1786.5,1786.2,0.40461532]
[1743936380442,3.0,1786.6,1786.3,4.69133]
[1743936380620,3.0,1786.6,1786.4,0.40295754]
[1743936383109,6.91776,1786.8,1786.4,0.40295754]
[1743936383310,0.8224,1787.1,1786.6,3.91791]
[1743936383512,3.91692,1787.2,1786.8,3.91752]
[1743936383837,7.83382,1787.2,1786.9,0.39957501]
[1743936384149,3.91638,1787.4,1787.0,4.68976]
[1743936384344,7.83285,1787.4,1787.1,0.39889558]
[1743936384563,8.698337,1787.4,1787.1,0.39889558]
[1743936386051,4.781867,1787.4,1787.1,0.39889558]
[1743936386759,8.698357,1787.4,1787.1,0.39889558]
[1743936388550,3.91663,1787.3,1787.1,0.39889558]
[1743936389122,4.7864797,1787.3,1787.1,0.39889558]
[1743936389454,4.7864797,1787.3,1786.8,3.9176]
[1743936389455,5.5929797,1787.3,1786.9,0.8127]
[1743936389619,5.5929797,1787.3,1787.2,0.39882733]
[1743936389821,3.91674,1787.2,1786.9,0.8127]
[1743936390021,5.5929797,1787.3,1787.0,0.39983239]
[1743936391133,9.5096597,1787.3,1787.0,0.39983239]
[1743936394840,5.5929797,1787.3,1787.0,0.39983239]
[1743936395139,4.7864797,1787.3,1787.0,0.39983239]
[1743936395770,7.71822,1787.4,1787.0,0.39983239]
[1743936395977,6.91632,1787.4,1787.1,0.785]
[1743936396345,6.91632,1787.4,1787.1,1.18324428]
[1743936396877,6.91632,1787.4,1787.1,5.10018428]
[1743936397378,6.91632,1787.4,1787.1,1.18324428]
[1743936398773,3.91666,1787.3,1787.1,0.39824428]
[1743936399142,3.91666,1787.3,1786.9,4.70237]
[1743936399348,3.91666,1787.3,1787.2,0.39774184]
[1743936399549,3.91666,1787.3,1787.2,0.398176]
[1743936399850,3.91666,1787.3,1786.9,4.70237]
[1743936400043,3.91666,1787.3,1787.0,0.39918099]
[1743936401681,3.91666,1787.3,1787.1,0.6]
[1743936402179,3.91666,1787.3,1787.2,0.39806746]
[1743936402379,3.91666,1787.3,1787.1,0.6]
[1743936402680,3.91666,1787.3,1787.2,0.39828455]
[1743936403173,3.91666,1787.3,1786.9,4.70226]
[1743936403376,3.91666,1787.3,1787.2,0.39828455]
[1743936403564,3.91666,1787.3,1786.9,4.70226]
[1743936404079,3.91666,1787.3,1787.0,0.39928955]
[1743936404279,6.91632,1787.4,1787.1,0.785]
[1743936404610,6.91632,1787.4,1787.2,0.39828455]
[1743936405175,6.91632,1787.4,1787.1,4.70194]
[1743936405378,6.91632,1787.4,1787.3,0.39778213]
[1743936405977,6.91632,1787.4,1787.1,0.785]
[1743936406182,6.91632,1787.4,1787.3,0.39778213]
[1743936406581,6.91632,1787.4,1787.1,4.70195]
[1743936406582,3.91588,1787.6,1787.2,3.91673]
[1743936406773,3.0,1787.5,1787.3,1.6062698]
[1743936407080,7.83106,1787.8,1787.3,5.57871554]
[1743936407282,3.0,1787.7,1787.5,0.8179]
[1743936407459,4.74559,1788.0,1787.6,0.39432208]
[1743936407665,3.91487,1788.1,1787.7,4.73345]
[1743936407868,3.915,1788.0,1787.8,0.39331797]
[1743936408462,7.83016,1788.0,1787.8,0.39331797]
[1743936408788,3.9152,1787.9,1787.8,0.39331797]
[1743936409488,3.9152,1787.9,1787.8,0.39353493]
[1743936409787,3.9155,1787.8,1787.5,0.8179]
[1743936410655,5.52883,1787.9,1787.5,0.8179]
[1743936410955,3.91521,1787.9,1787.5,4.73398]
[1743936411474,3.91521,1787.9,1787.6,0.6]
[1743936412108,6.91499,1788.0,1787.6,0.6]
[1743936412261,6.91499,1788.0,1787.6,5.049165]
[1743936412585,3.0,1788.0,1787.7,4.69695]
[1743936413556,3.0,1788.0,1787.8,0.39272139]
[1743936413798,6.915,1788.0,1787.8,0.39272139]
[1743936414462,3.915,1788.0,1787.8,0.39272139]
[1743936414959,3.91477,1788.1,1787.8,0.39272139]
[1743936415304,3.91499,1788.0,1787.8,0.39272139]
[1743936416215,3.91477,1788.1,1787.8,0.39272139]
[1743936417916,3.91455,1788.2,1787.8,4.81708253]
[1743936418119,3.91436,1788.3,1787.9,4.68978]
[1743936418436,7.82888,1788.3,1787.9,4.68978]
[1743936418599,3.91462,1788.2,1788.0,0.39150045]
[1743936418966,7.82889,1788.3,1788.0,0.39150045]
[1743936419165,3.91456,1788.2,1788.0,0.39150045]
[1743936420112,3.91436,1788.3,1788.0,0.39150045]
[1743936422422,3.91393,1788.5,1788.1,4.68935]
[1743936422919,3.91411,1788.4,1788.2,0.38832894]
[1743936423265,3.91411,1788.4,1788.1,0.7747]
[1743936423471,3.91411,1788.4,1788.2,0.38843731]
[1743936423665,3.91411,1788.4,1788.1,0.7747]
[1743936423971,3.91411,1788.4,1788.2,0.38854569]
[1743936424375,3.91411,1788.4,1788.1,0.7747]
[1743936424705,3.91411,1788.4,1788.2,0.38865407]
[1743936425182,3.91411,1788.4,1788.1,4.68946]
[1743936425389,3.91411,1788.4,1788.3,0.38815248]
[1743936425712,3.91411,1788.4,1788.3,0.3880441]
[1743936426111,3.0,1788.5,1788.2,3.91451]
[1743936426293,3.91377,1788.6,1788.3,0.3880441]
[1743936426472,6.5309554,1788.9,1788.3,0.3880441]
[1743936426473,3.91344,1788.8,1788.4,3.91402]
[1743936426673,3.91344,1788.8,1788.5,0.38655347]
[1743936426973,3.91344,1788.8,1788.5,1.14455347]
[1743936427402,0.6,1788.9,1788.6,3.91366]
[1743936427603,4.51316,1788.9,1788.5,5.05835347]
[1743936427808,4.51316,1788.9,1788.5,4.6718]
[1743936428106,7.51316,1788.9,1788.6,0.38523954]
[1743936428411,7.82668,1788.8,1788.6,0.38523954]
[1743936428709,3.91325,1788.8,1788.6,0.38523954]
[1743936432021,7.51302,1788.9,1788.6,0.38523954]
[1743936432377,7.51302,1788.9,1788.6,0.89653309]
[1743936432919,0.6,1788.9,1788.7,0.7828]
[1743936433121,0.6,1788.9,1788.7,4.75206046]
[1743936433293,0.6,1788.9,1788.8,0.38347878]
[1743936434266,0.6,1788.9,1788.8,4.29670878]
[1743936434560,0.6,1788.9,1788.8,5.07950878]
[1743936435513,0.6,1788.9,1788.8,10.29250878]
[1743936436526,0.6,1788.9,1788.8,10.89250878]
[1743936436737,0.6,1788.9,1788.8,6.97927878]
[1743936437038,0.6,1788.9,1788.8,10.89250878]
[1743936437559,0.6,1788.9,1788.8,10.94840083]
[1743936438310,0.6,1788.9,1788.8,10.89250878]
[1743936442367,0.6,1788.9,1788.8,5.67950878]
[1743936443455,0.6,1788.9,1788.8,10.90150878]
[1743936444655,0.6,1788.9,1788.8,0.98347878]
[1743936445447,0.6,1788.9,1788.8,1.03937621]
[1743936445768,0.6,1788.9,1788.8,0.98347878]
[1743936446668,5.32691,1788.9,1788.8,0.98347878]
[1743936448024,0.6,1788.9,1788.8,0.98347878]
[1743936449552,4.51301,1788.9,1788.8,0.98347878]
[1743936454293,0.6,1788.9,1788.8,0.98347878]
[1743936455591,4.51301,1788.9,1788.8,0.98347878]
[1743936456985,4.51301,1788.9,1788.8,0.6]
[1743936457181,4.51301,1788.9,1788.8,0.98315403]
[1743936459898,0.6,1788.9,1788.8,0.98315403]
[1743936460295,0.6,1788.9,1788.8,1.81345403]
[1743936460466,0.6,1788.9,1788.8,2.38613343]
[1743936461224,0.6,1788.9,1788.8,1.81345403]
[1743936464729,0.6,1788.9,1788.8,0.98315403]
[1743936466926,4.51301,1788.9,1788.8,0.98315403]